[Event "GER-ch Youth U12M 2018"]
[Site "Willingen"]
[Date "2018.05.21"]
[Round "3"]
[White "Foerster-Yialamas, Lucas"]
[Black "Tham, Nam"]
[Result "1/2-1/2"]
[ECO "C88"]
[WhiteElo "1924"]
[BlackElo "1866"]
[Annotator "NA RC"]
[PlyCount "94"]
[EventDate "2018.05.19"]
[EventType "swiss"]
[EventCountry "GER"]
[SourceTitle "playchess.com"]
[Source "ChessBase"]
[SourceQuality "1"]
[TimeControl "40/4500+30:900+30"]

{[%evp 9,85,22,31,36,38,37,32767,13,32767,9,14,-12,32,0,33,25,39,42,32767,104,106,113,129,96,32767,32767,32767,32767,158,148,165,129,150,159,165,48,59,12,32767,-72,32767,70,79,32767,32767,32767,32767,32767,100,32767,132,0,0,0,17,1,2,-33,32767,32767,-56,32767,32767,32767,-77,-92,-7,-6,-7,32767,32767,32767,32767,0,107,0,0,0]} 1. e4 {[%emt 0:00:00]} e5 {[%emt 0:00:05]} 2. Nf3 {[%emt 0:00:00]} Nc6 {[%emt 0:00:09]} 3. Bb5 {[%emt 0:00:00]} a6 {[%emt 0:00:08]} 4. Ba4 {[%emt 0:00:00]} Nf6 {[%emt 0:00:14]} 5. O-O {[%emt 0:00:07]} Be7 {[%emt 0:00:25]} 6. Re1 {[%emt 0:00:46]} b5 {[%emt 0:00:05]} 7. Bb3 {[%emt 0:00:05]} O-O {[%emt 0:00:26]} 8. a4 {[%emt 0:00:39]} b4 {[%emt 0:03:24]} 9. d4 {[%emt 0:00:40]} d6 $1 {[%emt 0:02:13]} 10. h3 {[%emt 0:00:36] LiveBook: 21 Partien} a5 {[%emt 0:02:49] C88: Closed Ruy Lopez: Anti-Marshall Systems} (10... exd4 11. Nxd4 Na5 12. c3 bxc3 13. Nxc3 c5 14. Nf5 Bxf5 15. exf5 Nxb3 16. Qxb3 d5 17. Qb7 Re8 18. Bg5 {½-½ (53) Safarli,E (2632)-Ragger,M (2659) Antalya 2017}) 11. Be3 $146 {[%emt 0:03:39]} ({Predecessor:} 11. Bg5 h6 12. Bxf6 Bxf6 13. Bd5 Ra6 14. c3 bxc3 15. bxc3 exd4 16. cxd4 Nb4 17. Nc3 Re8 18. Qb3 Nxd5 19. Nxd5 {1-0 (29) Bergsson,S (1997)-Kristinsson,O (2022) Reykjavik 2017}) 11... Ba6 {[%emt 0:01:55]} 12. Nbd2 {[%emt 0:01:42]} h6 {[%emt 0:01:06]} 13. Nc4 {[%emt 0:02:09]} Nd7 {[%emt 0:02:09]} 14. d5 {[%emt 0:01:33]} Bxc4 {[%emt 0:00:48]} 15. Bxc4 {[%emt 0:00:33]} Ncb8 {[%emt 0:00:26]} 16. c3 {[%emt 0:01:05]} Na6 {[%emt 0:03:19]} 17. Bxa6 {[%emt 0:00:58]} Rxa6 {[%emt 0:00:24]} 18. Qd3 {[%emt 0:00:24]} Qc8 {[%emt 0:01:31]} 19. cxb4 {[%emt 0:00:24]} axb4 {[%emt 0:00:04]} 20. Qb5 {[%emt 0:00:49]} c5 {[%emt 0:03:07]} 21. dxc6 $1 {[%emt 0:00:53]} Qxc6 {[%emt 0:00:05]} 22. Qxb4 {[%emt 0:02:16]} ({White should try} 22. Rac1 $16 Nc5 {[#]} 23. Nxe5 $1 {[%mdl 512]} dxe5 24. Bxc5 Bxc5 25. Rxc5 Qxb5 26. axb5) 22... Rb8 {[%emt 0:00:35]} 23. Qc3 {[%emt 0:00:34]} Qb7 {[%emt 0:04:12]} 24. Ra2 {[%emt 0:02:44]} (24. Qc4 $14 {bleibt weiter vorne.}) 24... Bd8 {[%emt 0:03:03]} 25. Qd3 {[%emt 0:07:04]} Bb6 {[%emt 0:05:26]} 26. Nh4 {[%emt 0:05:54]} Bxe3 {[%emt 0:00:18]} 27. Rxe3 {[%emt 0:00:44]} Nc5 {[%emt 0:00:09]} 28. Qc2 {[%emt 0:00:43]} Kh7 {[%emt 0:01:47]} ({Günstiger ist} 28... Rb6 $14) 29. Nf5 {[%emt 0:01:03]} Qa7 {[%emt 0:10:38]} 30. b3 {[%emt 0:04:33]} (30. Rc3 $16) 30... g6 {[%emt 0:00:41]} 31. Ng3 {[%emt 0:02:44]} Rab6 {[%emt 0:00:04]} 32. Ra3 {[%emt 0:03:07]} Qb7 {[%emt 0:00:48]} 33. Qd1 {[%emt 0:00:27]} Nxb3 {[%emt 0:00:57]} 34. Qd5 {[%emt 0:02:31]} Qxd5 {[%emt 0:03:15]} 35. exd5 {[%emt 0:00:06]} Nd2 {[%emt 0:01:56]} 36. Red3 {[%emt 0:00:54]} Rb1+ {[%emt 0:06:11]} 37. Kh2 {[%emt 0:00:05]} R1b2 {[%emt 0:00:17]} (37... Nc4 $17 38. Ra2 R8b2 39. Rxb2 Rxb2) 38. a5 $1 {[%emt 0:01:07]} f5 {[%emt 0:00:07]} 39. Rdc3 {[%emt 0:04:12]} f4 {[%emt 0:00:39]} 40. Rc7+ {[%emt 0:01:12]} Kg8 {[%emt 0:15:09]} 41. Ne2 {[%emt 0:17:00]} Nb1 {[%emt 0:01:19] [#]} (41... Nf1+ $1 $11 42. Kg1 Rxe2 43. Kxf1 Rbb2) 42. Ra1 {[%emt 0:02:50]} (42. Ra4 $1 $16) 42... Rxe2 {[%emt 0:00:22]} 43. a6 $11 {[%emt 0:00:04]} Reb2 {[%emt 0:00:09]} 44. Rc6 {[%emt 0:00:42]} Nd2 {[%emt 0:00:30]} 45. Rxd6 {[%emt 0:01:06]} Rb1 {[%emt 0:01:00]} 46. a7 {[%emt 0:00:41]} Nf1+ {[%emt 0:00:06]} 47. Kg1 {[%emt 0:00:14]} Ng3+ {[%emt 0:00:06]} 1/2-1/2

[Event "GER-ch Youth U12M 2018"]
[Site "Willingen"]
[Date "2018.05.21"]
[Round "3"]
[White "Hommer, Jeremy"]
[Black "Eilenberg, Jonas"]
[Result "1/2-1/2"]
[ECO "D00"]
[WhiteElo "1897"]
[BlackElo "1852"]
[Annotator "NA RC"]
[PlyCount "60"]
[EventDate "2018.05.19"]
[EventType "swiss"]
[EventCountry "GER"]
[SourceTitle "playchess.com"]
[Source "ChessBase"]
[SourceQuality "1"]
[TimeControl "40/4500+30:900+30"]

{[%evp 8,56,8,-8,-10,-15,4,-4,-8,-3,0,32767,32767,32767,32767,32767,-13,-32,-27,-33,-37,-58,32767,-54,-67,-76,-54,32767,32767,32767,32767,-54,-29,-28,-10,-58,-25,-32,-11,32767,-11,-61,106,95,115,60,61,32,114,0,63]} 1. d4 {[%emt 0:00:00]} d5 {[%emt 0:00:13]} 2. Bf4 {[%emt 0:00:00]} Nf6 {[%emt 0:00:34]} 3. e3 {[%emt 0:00:00]} e6 {[%emt 0:00:16]} 4. Nd2 {[%emt 0:00:22]} Bd6 {[%emt 0:00:34]} 5. Bg3 {[%emt 0:00:44]} O-O {[%emt 0:00:16]} 6. Ngf3 {[%emt 0:00:36]} c5 {[%emt 0:01:54]} 7. c3 {[%emt 0:00:14]} Nc6 {[%emt 0:00:15]} 8. Bd3 {[%emt 0:00:52] LiveBook: 711 Games} b6 {[%emt 0:00:06]} 9. Ne5 {[%emt 0:06:38]} Bb7 {[%emt 0:00:08]} 10. O-O {[%emt 0:00:46] D02: 1 d4 d5 2 Nf3 sidelines, including 2...Nf6 3 g3 and 2...Nf6 3 Bf4} Ne7 {[%emt 0:00:06]} (10... Qc7 11. f4 Ne7 12. Qb1 Qc8 13. Bh4 Nf5 14. Bxf5 exf5 15. Bxf6 gxf6 16. Nef3 Qe6 17. Re1 Ba6 18. Nh4 cxd4 19. exd4 {1-0 (28) Korobov,A (2692)-Dominguez Perez,L (2739) Doha 2016}) 11. f4 {[%emt 0:00:31]} Nf5 {[%emt 0:00:40]} 12. Bf2 {[%emt 0:00:07]} Be7 {[%emt 0:00:06]} 13. Qe2 {[%emt 0:19:52]} Ne4 $146 {[%emt 0:02:43]} ({Predecessor:} 13... Nd6 14. Rfd1 Qc7 15. a4 a6 16. h3 c4 {1-0 (39) Djukic,Z (2428)-Hummel,D (2266) Dos Hermanas 2004}) 14. Rad1 {[%emt 0:14:11]} Qc8 {[%emt 0:05:24]} 15. g4 {[%emt 0:08:17]} Nfd6 {[%emt 0:01:44]} 16. Nef3 {[%emt 0:03:06]} a5 {[%emt 0:11:06]} 17. Bh4 {[%emt 0:00:30]} Bxh4 {[%emt 0:00:10]} 18. Nxh4 {[%emt 0:00:01]} Nxd2 {[%emt 0:00:29]} 19. Qxd2 {[%emt 0:01:32]} Ne4 {[%emt 0:02:22]} 20. Qe2 {[%emt 0:02:48]} a4 {[%emt 0:01:32]} 21. Qe1 {[%emt 0:05:02]} a3 {[%emt 0:01:09]} 22. b3 {[%emt 0:00:41]} cxd4 {[%emt 0:03:45]} 23. Bxe4 {[%emt 0:04:50]} dxe4 {[%emt 0:00:28]} 24. Rxd4 {[%emt 0:00:05]} e5 $2 {[%emt 0:01:57] [#]} (24... Ba6 $15 {stays ahead.} 25. Rf2 Qc6) 25. Nf5 $1 {[%emt 0:00:25]} Qc7 {[%emt 0:02:39]} 26. Rc4 {[%emt 0:01:22]} Qb8 $1 {[%emt 0:01:29]} 27. Qh4 {[%emt 0:00:47]} exf4 {[%emt 0:01:25]} (27... f6 $1 $14) 28. Qg5 $11 {[%emt 0:02:42]} ({Of course not} 28. exf4 $6 Kh8 $11) (28. Rd4 $16 f3 29. Qg5) 28... g6 {[%emt 0:00:48]} 29. Ne7+ {[%emt 0:04:27]} Kg7 {[%emt 0:00:06]} 30. Nf5+ {[%emt 0:00:02]} Kg8 {[%emt 0:00:01]} 1/2-1/2

[Event "GER-ch Youth U12M 2018"]
[Site "Willingen"]
[Date "2018.05.21"]
[Round "3"]
[White "Haack, Kevin"]
[Black "Laux, Dominik"]
[Result "1-0"]
[ECO "A20"]
[WhiteElo "1846"]
[BlackElo "1889"]
[Annotator "NA"]
[PlyCount "101"]
[EventDate "2018.05.19"]
[EventType "swiss"]
[EventCountry "GER"]
[SourceTitle "playchess.com"]
[Source "ChessBase"]
[SourceQuality "1"]
[TimeControl "40/4500+30:900+30"]

1. c4 {[%emt 0:00:00]} e5 {[%emt 0:00:21]} 2. g3 {[%emt 0:00:00]} Nf6 {[%emt 0:00:13]} 3. Bg2 {[%emt 0:00:00]} h6 {[%emt 0:00:11] A20: Englische Eröffnung} 4. d3 {[%emt 0:00:23]} Bb4+ {[%emt 0:00:12]} 5. Bd2 {[%emt 0:00:04]} Bxd2+ {[%emt 0:00:06]} 6. Qxd2 {[%emt 0:00:03]} O-O {[%emt 0:00:06] LiveBook: 9 Games} 7. Nf3 {[%emt 0:00:44]} Re8 {[%emt 0:00:30]} 8. Nc3 {[%emt 0:00:25]} c6 {[%emt 0:00:09]} 9. O-O {[%emt 0:01:25]} d5 {[%emt 0:00:32]} 10. Rfd1 $146 {[%emt 0:05:13]} ({Vorgänger:} 10. cxd5 cxd5 11. d4 {½-½ (81) Hou,Y (2658)-Inarkiev,E (2732) Petropavlovsk Kamchatsky 2016}) 10... Bf5 {[%emt 0:04:56]} 11. e3 {[%emt 0:08:03]} Na6 {[%emt 0:06:00]} 12. cxd5 {[%emt 0:08:31]} cxd5 {[%emt 0:00:30]} 13. Rac1 {[%emt 0:03:00]} (13. e4 $5 dxe4 14. dxe4 Qxd2 15. Nxd2 $11) 13... Nb4 {[%emt 0:09:00]} 14. Nxd5 {[%emt 0:10:21]} Nbxd5 {[%emt 0:07:52]} 15. e4 {[%emt 0:00:18]} Be6 {[%emt 0:06:03]} 16. exd5 {[%emt 0:00:26]} Bxd5 {[%emt 0:00:06]} 17. b3 {[%emt 0:04:35]} Qd6 {[%emt 0:05:02]} 18. d4 {[%emt 0:03:27]} e4 {[%emt 0:02:42]} (18... Bxf3 $5 19. Bxf3 e4 $11) 19. Ne5 {[%emt 0:00:41]} Nd7 {[%emt 0:01:41]} 20. Nc4 {[%emt 0:00:47]} Bxc4 {[%emt 0:01:12]} 21. bxc4 {[%emt 0:00:20]} f5 {[%emt 0:00:56]} 22. c5 {[%emt 0:01:15]} Qd5 {[%emt 0:01:01]} 23. Bf1 {[%emt 0:01:17]} Kh8 {[%emt 0:01:09]} 24. Bc4 {[%emt 0:04:01]} Qc6 {[%emt 0:00:14]} 25. Qb4 {[%emt 0:01:00]} e3 {[%emt 0:04:12]} (25... f4 $1 $11 {bleibt in der Remisbreite.}) 26. fxe3 {[%emt 0:04:45]} Qf3 {[%emt 0:04:55]} (26... Rxe3 $16 27. Bf1 Qc7) 27. Qd2 {[%emt 0:02:13]} Rad8 {[%emt 0:04:24]} 28. Rf1 {[%emt 0:01:01]} Qe4 {[%emt 0:04:20]} 29. Rf4 {[%emt 0:03:21]} Qxe3+ {[%emt 0:00:51]} 30. Qxe3 {[%emt 0:00:08]} Rxe3 {[%emt 0:00:08]} 31. Rxf5 {[%emt 0:00:34]} Nf6 {[%emt 0:00:18]} 32. Rd1 {[%emt 0:02:12]} Re4 {[%emt 0:01:55]} 33. Rf4 {[%emt 0:00:25]} Rxf4 {[%emt 0:00:28]} 34. gxf4 {[%emt 0:00:01]} Ne4 {[%emt 0:00:19]} 35. Bb3 {[%emt 0:03:06]} g6 {[%emt 0:03:33]} 36. Kg2 {[%emt 0:01:15]} Kg7 {[%emt 0:01:17]} 37. Kf3 {[%emt 0:01:15]} Nc3 {[%emt 0:00:49]} 38. Rd3 {[%emt 0:00:52]} Nd5 {[%emt 0:02:19]} 39. Bxd5 {[%emt 0:00:35]} Rxd5 {[%emt 0:00:32]} 40. Ke4 {[%emt 0:00:09]} Rd8 {[%emt 0:15:09]} 41. d5 {[%emt 0:15:15]} Kf6 {[%emt 0:01:03]} 42. c6 {[%emt 0:05:58]} bxc6 {[%emt 0:04:02]} 43. dxc6 {[%emt 0:00:08]} Rc8 {[%emt 0:00:17]} 44. Rd6+ {[%emt 0:00:38]} Kf7 {[%emt 0:00:37]} 45. Kd5 {[%emt 0:00:08]} g5 {[%emt 0:00:38]} 46. f5 {[%emt 0:00:55]} h5 {[%emt 0:00:38]} 47. Rd7+ {[%emt 0:00:14]} Kf6 {[%emt 0:00:27]} 48. Kd6 {[%emt 0:00:41]} g4 {[%emt 0:00:46]} 49. c7 $18 {[%emt 0:00:15]} h4 {[%emt 0:01:20]} 50. Rd8 {[%emt 0:00:17]} g3 {[%emt 0:01:00]} 51. hxg3 {[%emt 0:00:09]} 1-0

[Event "GER-ch Youth U12M 2018"]
[Site "Willingen"]
[Date "2018.05.21"]
[Round "3"]
[White "Metzdorf, Matteo"]
[Black "Schubert, Nikita"]
[Result "0-1"]
[ECO "C74"]
[WhiteElo "1832"]
[BlackElo "1802"]
[Annotator "NA RC"]
[PlyCount "116"]
[EventDate "2018.05.19"]
[EventType "swiss"]
[EventCountry "GER"]
[SourceTitle "playchess.com"]
[Source "ChessBase"]
[SourceQuality "1"]
[TimeControl "40/4500+30:900+30"]

1. e4 {[%emt 0:00:00]} e5 {[%emt 0:00:03]} 2. Nf3 {[%emt 0:00:00]} Nc6 {[%emt 0:00:04]} 3. Bb5 {[%emt 0:00:00]} a6 {[%emt 0:00:06]} 4. Ba4 {[%emt 0:00:01]} d6 {[%emt 0:00:06]} 5. c3 {[%emt 0:13:45] LiveBook: 1436 Games} f5 {[%emt 0:00:20]} 6. d3 {[%emt 0:04:14]} fxe4 {[%emt 0:00:47] C74: Spanische Partie (Moderne Steinitz-Verteidigung)} (6... Nf6 7. O-O Be7 8. Re1 O-O 9. h3 Kh8 10. Nbd2 fxe4 11. Nxe4 Nxe4 12. Rxe4 Bf5 13. Re3 Qe8 14. d4 Qg6 15. Nh2 Bh4 16. Nf3 {1-0 (72) Kovalenko,I (2639)-Fressinet,L (2662) Katowice 2017}) 7. dxe4 {[%emt 0:00:13]} Nf6 {[%emt 0:00:24]} 8. Nbd2 {[%emt 0:01:34]} Bg4 {[%emt 0:02:01]} 9. Qe2 {[%emt 0:02:30]} Qd7 {[%emt 0:07:29]} 10. O-O {[%emt 0:06:34]} Be7 {[%emt 0:13:29]} 11. Re1 $146 {[%emt 0:09:45]} (11. h3 $14 Be6 12. Rd1) ({Vorgänger:} 11. Qd3 Nh5 12. Bxc6 bxc6 13. Nc4 O-O 14. Ne1 Qe8 15. f3 {0-1 (30) Dogan,S (1864)-Gazikova,V (2190) Porto Carras 2015}) 11... O-O {[%emt 0:06:11]} 12. Bc2 {[%emt 0:14:53]} (12. h3 $14 Bh5 13. b4) 12... Nh5 {[%emt 0:04:24]} 13. Qe3 {[%emt 0:08:39]} Nf4 {[%emt 0:03:22]} 14. Bd1 {[%emt 0:02:26]} h6 {[%emt 0:01:48]} 15. Nf1 {[%emt 0:02:55] [#]} (15. Rf1 $17 {was called for.}) 15... Rf6 {[%emt 0:12:10]} ({Black should try} 15... Bh3 $1 $19 {[%mdl 512]} 16. g3 (16. gxh3 Qxh3) 16... Ng2) 16. Ng3 {[%emt 0:07:43]} Raf8 {[%emt 0:02:42]} 17. Nh4 $2 {[%emt 0:01:35]} (17. Nd2 $17) 17... Bxd1 {[%emt 0:03:32]} 18. Rxd1 {[%emt 0:00:05]} Qg4 {[%emt 0:00:11]} 19. f3 {[%emt 0:03:27]} Qxh4 {[%emt 0:01:55]} 20. Nf5 {[%emt 0:00:33]} Qh5 {[%emt 0:03:37]} 21. g3 {[%emt 0:01:00]} Ne6 {[%emt 0:01:27]} 22. Kg2 {[%emt 0:01:13]} Qf7 {[%emt 0:03:15]} 23. Rf1 {[%emt 0:00:32]} Bd8 {[%emt 0:04:33]} 24. g4 {[%emt 0:01:16]} Nf4+ {[%emt 0:01:31]} 25. Kg1 {[%emt 0:00:56]} Kh7 {[%emt 0:01:40]} 26. Bd2 {[%emt 0:01:18]} Re6 {[%emt 0:01:55]} 27. Ng3 {[%emt 0:00:41]} Bg5 {[%emt 0:00:22]} 28. Qe1 {[%emt 0:00:23]} Nh3+ {[%emt 0:00:57]} 29. Kg2 {[%emt 0:00:07]} Bxd2 {[%emt 0:00:03]} 30. Qxd2 {[%emt 0:00:06]} Nf4+ {[%emt 0:00:08]} 31. Kg1 {[%emt 0:00:31]} Rf6 {[%emt 0:00:51]} 32. Qe3 {[%emt 0:00:37]} g6 {[%emt 0:00:30]} 33. b3 {[%emt 0:00:25]} Nh3+ {[%emt 0:00:44]} 34. Kg2 {[%emt 0:00:08]} Ng5 {[%emt 0:00:07]} 35. h4 {[%emt 0:01:34]} Ne6 {[%emt 0:03:33]} 36. Rad1 {[%emt 0:00:25]} Nf4+ {[%emt 0:02:34]} 37. Kh2 {[%emt 0:00:35]} Rd8 {[%emt 0:01:59]} 38. c4 {[%emt 0:00:30]} Nd4 {[%emt 0:00:20]} 39. Rd2 {[%emt 0:00:26]} Rd7 {[%emt 0:01:17]} 40. Rdf2 {[%emt 0:00:29]} Qf8 {[%emt 0:15:52]} 41. Rd2 {[%emt 0:15:21]} Rdf7 {[%emt 0:00:34]} 42. Rdf2 {[%emt 0:00:38]} a5 {[%emt 0:00:00]} 43. a4 {[%emt 0:00:00]} Nfe6 {[%emt 0:00:00]} 44. Kg2 {[%emt 0:00:00]} Nc5 {[%emt 0:00:00]} 45. g5 $19 {[%emt 0:00:00]} Rf4 {[%emt 0:00:00]} 46. h5 {[%emt 0:00:00]} hxg5 {[%emt 0:00:00]} 47. Rh1 {[%emt 0:00:00]} Qe7 {[%emt 0:00:00]} 48. Rhf1 {[%emt 0:00:00]} b6 {[%emt 0:00:00]} 49. Qc3 {[%emt 0:00:00]} g4 {[%emt 0:00:00]} 50. fxg4 {[%emt 0:00:00]} Rxf2+ {[%emt 0:00:33]} 51. Rxf2 {[%emt 0:00:00]} Rxf2+ {[%emt 0:00:10]} 52. Kxf2 {[%emt 0:00:00]} Qh4 {[%emt 0:00:56]} 53. hxg6+ {[%emt 0:00:33]} Kxg6 {[%emt 0:00:03]} 54. Kg2 {[%emt 0:01:04]} Qxg4 {[%emt 0:00:15]} 55. b4 {[%emt 0:00:27]} Nxe4 {[%emt 0:00:39]} 56. Qd3 {[%emt 0:00:36]} Qxg3+ {[%emt 0:00:07]} 57. Qxg3+ {[%emt 0:00:07]} Nxg3 {[%emt 0:00:04]} 58. Kxg3 {[%emt 0:00:06]} axb4 {[%emt 0:00:04]} 0-1

[Event "GER-ch Youth U12M 2018"]
[Site "Willingen"]
[Date "2018.05.21"]
[Round "3"]
[White "Schulemann, Gero"]
[Black "Klugstedt, Vincent"]
[Result "*"]
[ECO "E98"]
[WhiteElo "1700"]
[BlackElo "1810"]
[Annotator "NA RC"]
[PlyCount "71"]
[EventDate "2018.05.19"]
[EventType "swiss"]
[EventCountry "GER"]
[SourceTitle "playchess.com"]
[Source "ChessBase"]
[SourceQuality "1"]
[TimeControl "40/4500+30:900+30"]

{[%evp 13,71,40,66,32767,32767,32767,32767,32767,32767,32767,32767,32767,32767,32767,32767,14,32767,11,4,29,32767,-10,-23,-14,50,32767,32767,32767,32767,32767,32767,160,157,147,156,160,32767,32767,178,164,154,171,175,-215,32767,32767,32767,32767,100,0,60,31,67,61,32767,32767,32767,0,25,0]} 1. d4 {[%emt 0:00:00]} Nf6 {[%emt 0:00:01]} 2. c4 {[%emt 0:00:00]} g6 {[%emt 0:00:03]} 3. Nc3 {[%emt 0:00:00]} Bg7 {[%emt 0:00:05]} 4. e4 {[%emt 0:00:08]} d6 {[%emt 0:00:06]} 5. Nf3 {[%emt 0:00:16]} O-O {[%emt 0:00:04]} 6. Be2 {[%emt 0:00:19]} e5 {[%emt 0:00:06]} 7. O-O {[%emt 0:00:20]} Nc6 {[%emt 0:00:03]} 8. d5 {[%emt 0:00:14]} Ne7 {[%emt 0:00:03]} 9. Ne1 {[%emt 0:00:20]} Nd7 {[%emt 0:00:09]} 10. Be3 {[%emt 0:00:18]} f5 {[%emt 0:00:32]} 11. f3 {[%emt 0:00:18]} f4 {[%emt 0:00:12]} 12. Bf2 {[%emt 0:00:06]} h5 {[%emt 0:01:19]} 13. Rc1 {[%emt 0:00:42]} g5 {[%emt 0:01:08] E99: Königsindisch (Klassisches System)} 14. c5 {[%emt 0:01:05]} ({Better is} 14. Nd3 $16) 14... Nxc5 {[%emt 0:03:50]} 15. b4 {[%emt 0:02:15]} Na6 $1 {[%emt 0:04:35]} 16. Nb5 {[%emt 0:03:17] LiveBook: 4 Games [#]} Rf6 $146 {[%emt 0:06:45]} ({Vorgänger:} 16... Ng6 17. Nxa7 Bd7 18. a4 Nxb4 19. Qb3 g4 20. fxg4 hxg4 21. Qxb4 {½-½ (30) Erdos,V (2454)-Acs,P (2545) Hungary 2005}) 17. Qc2 {[%emt 0:09:11]} c6 $1 {[%emt 0:03:40]} 18. dxc6 {[%emt 0:01:07]} bxc6 {[%emt 0:02:02]} 19. Nxa7 {[%emt 0:03:57]} Nxb4 {[%emt 0:10:23]} 20. Qc4+ {[%emt 0:03:59]} Be6 {[%emt 0:00:24]} 21. Qxb4 {[%emt 0:00:49]} c5 {[%emt 0:00:49]} 22. Qb7 {[%emt 0:02:48]} Rf7 {[%emt 0:03:46]} 23. Nc6 {[%emt 0:02:42]} Nxc6 {[%emt 0:00:58]} 24. Qxc6 {[%emt 0:00:10]} Rc7 {[%emt 0:01:19]} 25. Qb6 {[%emt 0:01:26]} Rb8 {[%emt 0:03:43]} 26. Qa6 {[%emt 0:02:32]} Ra8 {[%emt 0:00:24]} 27. Qd3 {[%emt 0:01:15]} Rxa2 {[%emt 0:01:45]} 28. Bxc5 $4 {[%emt 0:13:04]} (28. Nc2 $18 {und alles wird gut.}) 28... Rxe2 {[%emt 0:03:53]} 29. Qxe2 {[%emt 0:00:19]} dxc5 {[%emt 0:00:30]} 30. Qa6 {[%emt 0:04:59]} Qd4+ {[%emt 0:00:46]} (30... Qc8 $11 {bleibt in der Remisbreite.} 31. Qd6 Bf6) 31. Rf2 {[%emt 0:02:44]} (31. Kh1 $16 Qd7 32. Nd3) 31... Bf7 {[%emt 0:01:01]} ({Black should try} 31... Qd7 $11) 32. Nc2 {[%emt 0:05:23]} Qd7 {[%emt 0:05:29]} 33. Qa5 {[%emt 0:03:51]} Bf8 {[%emt 0:02:07]} 34. Rd2 {[%emt 0:02:11]} Qe7 {[%emt 0:02:38]} 35. Na3 {[%emt 0:06:25]} c4 $11 {[%emt 0:02:35]} (35... Ra7 $5 36. Qc3 $8 c4 37. Nxc4 Rc7 $11) 36. Nb1 {[%emt 0:06:28]} *

[Event "GER-ch Youth U12M 2018"]
[Site "Willingen"]
[Date "2018.05.21"]
[Round "3"]
[White "Kort, Felix"]
[Black "Hoffmann, Kay"]
[Result "1-0"]
[ECO "C44"]
[WhiteElo "1672"]
[BlackElo "1247"]
[Annotator "NA RC"]
[PlyCount "89"]
[EventDate "2018.05.19"]
[EventType "swiss"]
[EventCountry "GER"]
[SourceTitle "playchess.com"]
[Source "ChessBase"]
[SourceQuality "1"]
[TimeControl "40/4500+30:900+30"]

1. e4 {[%emt 0:00:00]} e5 {[%emt 0:00:07]} 2. Nf3 {[%emt 0:00:00]} Nc6 {[%emt 0:00:05]} 3. d4 {[%emt 0:00:00]} exd4 {[%emt 0:00:13]} 4. Bc4 {[%emt 0:00:00]} Na5 {[%emt 0:01:01]} 5. Bb5 {[%emt 0:25:01]} a6 {[%emt 0:00:15]} 6. Ba4 {[%emt 0:00:13]} b5 {[%emt 0:00:11]} 7. Bb3 {[%emt 0:00:01]} Nxb3 {[%emt 0:00:06]} 8. axb3 {[%emt 0:00:07]} Bb7 {[%emt 0:00:13]} 9. Qxd4 {[%emt 0:03:05]} c5 {[%emt 0:01:04]} 10. Qd3 {[%emt 0:00:30]} d5 {[%emt 0:01:06]} 11. exd5 {[%emt 0:01:01]} Qxd5 {[%emt 0:00:13]} 12. Qe2+ {[%emt 0:01:34]} Qe4 {[%emt 0:00:49]} 13. Be3 {[%emt 0:01:49]} Nf6 {[%emt 0:00:28]} 14. Nc3 {[%emt 0:00:13]} Qe6 {[%emt 0:01:08]} 15. O-O {[%emt 0:06:17]} Bd6 {[%emt 0:01:23]} 16. Rfe1 {[%emt 0:06:39]} O-O {[%emt 0:00:30]} 17. Bg5 {[%emt 0:00:16]} Qxe2 {[%emt 0:00:15]} 18. Rxe2 {[%emt 0:00:18]} Bxf3 {[%emt 0:00:59]} 19. gxf3 {[%emt 0:00:06]} h6 {[%emt 0:01:36]} 20. Bxf6 {[%emt 0:00:54]} gxf6 {[%emt 0:00:14]} 21. Ne4 {[%emt 0:00:02]} Be7 {[%emt 0:00:51]} 22. Ng3 {[%emt 0:00:22]} Kh7 {[%emt 0:01:54]} 23. Rxe7 {[%emt 0:00:04]} Kg7 {[%emt 0:00:30]} 24. Rc7 {[%emt 0:00:19]} Rac8 {[%emt 0:01:05]} 25. Rxc8 {[%emt 0:00:12]} Rxc8 {[%emt 0:00:04]} 26. Rxa6 {[%emt 0:00:04]} Rd8 {[%emt 0:00:05]} 27. Rc6 {[%emt 0:00:07]} Rd1+ {[%emt 0:00:06]} 28. Kg2 {[%emt 0:00:04]} Rb1 {[%emt 0:00:05]} 29. Rxc5 {[%emt 0:00:10]} Rxb2 {[%emt 0:00:04]} 30. Rxb5 {[%emt 0:00:27]} Rxc2 {[%emt 0:00:06]} 31. b4 {[%emt 0:00:18]} Rb2 {[%emt 0:00:04]} 32. Rb8 {[%emt 0:00:10]} Kg6 {[%emt 0:00:08]} 33. b5 {[%emt 0:00:10]} f5 {[%emt 0:00:09]} 34. b6 {[%emt 0:00:14]} Kf6 {[%emt 0:00:05]} 35. b7 {[%emt 0:00:07]} f4 {[%emt 0:00:08]} 36. Ne4+ {[%emt 0:00:13]} Kf5 {[%emt 0:00:06]} 37. Rf8 {[%emt 0:00:05]} Kg6 {[%emt 0:01:37]} 38. b8=Q {[%emt 0:00:12]} Rxb8 {[%emt 0:00:04]} 39. Rxb8 {[%emt 0:00:06]} f5 {[%emt 0:00:08]} 40. Rb6+ {[%emt 0:00:07]} Kh5 {[%emt 0:15:14]} 41. Ng3+ {[%emt 0:15:29]} fxg3 {[%emt 0:00:26]} 42. Kxg3 {[%emt 0:00:10]} Kg5 {[%emt 0:00:19]} 43. h4+ {[%emt 0:00:05]} Kh5 {[%emt 0:00:04]} 44. Kf4 {[%emt 0:00:06]} Kxh4 {[%emt 0:00:05]} 45. Rxh6# 1-0